fUSD/lending_fUSD_20240814
["ID","MTS","AMOUNT","RATE_DAILY","PERIOD"]
[334960508,1723677035431,-151.0,0.00017553,2]
[334960509,1723677035441,-151.0,0.00017553,2]
[334960510,1723677035451,-151.0,0.00017553,2]
[334960511,1723677035461,-151.0,0.00017553,2]
[334960512,1723677035472,-151.0,0.00017553,2]
[334960513,1723677035482,-151.0,0.00017553,2]
[334960514,1723677035492,-151.0,0.00017553,2]
[334960515,1723677035502,-151.0,0.00017553,2]
[334960516,1723677035512,-151.0,0.00017553,2]
[334960517,1723677035522,-151.0,0.00017553,2]
[334960518,1723677035532,-151.0,0.00017553,2]
[334960519,1723677035542,-151.0,0.00017553,2]
[334960520,1723677035552,-151.0,0.00017553,2]
[334960521,1723677035563,-151.0,0.00017553,2]
[334960522,1723677035573,-151.0,0.00017553,2]
[334960523,1723677035583,-151.0,0.00017553,2]
[334960524,1723677035594,-151.0,0.00017553,2]
[334960525,1723677035603,-151.0,0.00017553,2]
[334960526,1723677035614,-500.0,0.00017562,2]
[334960527,1723677035627,-3749.26073441,0.00017566,3]
[334960528,1723677035637,-500.0,0.0001757,2]
[334960529,1723677035647,-3749.26073441,0.00017578,3]
[334960530,1723677035657,-151.0,0.00017578,2]
[334960531,1723677035667,-151.0,0.00017578,2]
[334960532,1723677035677,-500.0,0.00017579,2]
[334960533,1723677035687,-500.0,0.00017588,2]
[334960534,1723677035697,-500.0,0.00017597,2]
[334960535,1723677035707,-500.0,0.00017606,2]
[334960536,1723677035717,-500.0,0.00017614,2]
[334960537,1723677035726,-500.0,0.00017623,2]
[334960538,1723677035736,-3749.26073441,0.00017629,3]
[334960539,1723677035751,-500.0,0.00017632,2]
[334960540,1723677035761,-3749.26073441,0.0001764,3]
[334960541,1723677035772,-500.0,0.00017641,2]
[334960542,1723677035782,-500.0,0.0001765,2]
[334960543,1723677035792,-500.0,0.00017658,2]
[334960544,1723677035802,-3749.26073441,0.00017663,3]
[334960545,1723677035812,-500.0,0.00017667,2]
[334960546,1723677035822,-500.0,0.00017676,2]
[334960547,1723677035832,-500.0,0.00017685,2]
[334960548,1723677035841,-3749.26073441,0.00017692,3]
[334960549,1723677035851,-500.0,0.00017694,2]
[334960550,1723677035860,-500.0,0.00017702,2]
[334960551,1723677035870,-500.0,0.00017711,2]
[334960552,1723677035880,-4178.41397696,0.00017719,3]
[334960553,1723677035890,-500.0,0.0001772,2]
[334960554,1723677035900,-500.0,0.00017729,2]
[334960555,1723677035912,-3749.26073441,0.00017732,3]
[334960556,1723677035922,-500.0,0.00017738,2]
[334960557,1723677035933,-500.0,0.00017746,2]
[334960558,1723677035943,-3749.26073441,0.00017754,3]
[334960559,1723677035953,-500.0,0.00017755,2]
[334960560,1723677035963,-500.0,0.00017764,2]
[334960561,1723677035973,-157.34,0.00017768,2]
[334960562,1723677035983,-500.0,0.00017773,2]
[334960563,1723677035996,-500.0,0.00017782,2]
[334960564,1723677036006,-500.0,0.0001779,2]
[334960565,1723677036016,-4178.41397696,0.00017798,3]
[334960566,1723677036025,-500.0,0.00017799,2]
[334960567,1723677036036,-500.0,0.00017808,2]
[334960568,1723677036045,-620.23776426,0.00017808,2]
[334960569,1723677036055,-680.0,0.00018065,2]
[334960570,1723677036065,-2042.570093,0.00018356,2]
[334960571,1723677036076,-3787.77579506,0.00018456,2]
[334960572,1723677036085,-4178.41397696,0.00018723,3]
[334960573,1723677036097,-764.0,0.00018733,2]
[334960574,1723677036106,-327.34498201,0.00019118,2]
[334960575,1723677036117,-2042.570093,0.00019178,2]
[334960576,1723677036127,-152.0,0.00019581,2]
[334960577,1723677036137,-680.0,0.00019871,2]
[334960578,1723677036147,-3787.77579506,0.00019967,2]
[334960579,1723677036157,-4178.41397696,0.0001998,4]
[334960580,1723677036167,-8356.82795392,0.0001999,4]
[334960581,1723677036189,-3500.0,0.0002,7]
[334960582,1723677036201,-7000.0,0.0002,7]
[334960583,1723677036211,-367.30388687,0.0002,2]
[334960584,1723677036222,-2042.570093,0.0002,2]
[334960585,1723677036232,-900.0,0.00020024,2]
[334960586,1723677036244,-157.34,0.00020155,2]
[334960587,1723677036253,-500.0,0.00020182,2]
[334960588,1723677036263,-500.0,0.00020261,2]
[334960589,1723677036273,-700.0,0.00020281,2]
[334960590,1723677036283,-500.0,0.00020301,2]
[334960591,1723677036293,-900.0,0.00020352,2]
[334960592,1723677036303,-472.39,0.00020447,2]
[334960593,1723677036314,-4178.41397696,0.00020602,4]
[334960594,1723677036325,-500.0,0.00020612,2]
[334960595,1723677036335,-900.0,0.00020615,2]
[334960596,1723677036345,-700.0,0.00020619,2]
[334960597,1723677036354,-500.0,0.00020621,2]
[334960598,1723677036364,-500.0,0.00020621,2]
[334960599,1723677036375,-500.0,0.00020697,2]
[334960600,1723677036384,-676.50109187,0.00020699,2]
[334960601,1723677036394,-900.0,0.00020771,2]
[334960602,1723677036404,-897.12226293,0.00020784,2]
[334960603,1723677036415,-647.09591446,0.00020789,2]
[334960604,1723677036425,-4178.41397696,0.00020802,4]
[334960605,1723677036437,-2042.570093,0.00020822,2]
[334960606,1723677036447,-900.0,0.00020841,2]
[334960607,1723677036458,-900.0,0.00020867,2]
[334960608,1723677036468,-900.0,0.00020888,2]
[334960609,1723677036478,-300.0,0.000209,7]
[334960610,1723677036488,-4178.41397696,0.0002092,4]
[334960611,1723677036499,-900.0,0.00020927,2]
[334960612,1723677036509,-900.0,0.0002093,2]
[334960613,1723677036520,-500.0,0.00020975,2]
[334960614,1723677036531,-500.0,0.00020978,2]
[334960615,1723677036541,-3000.0,0.00021,2]
[334960616,1723677036552,-700.0,0.00021039,2]
[334960617,1723677036562,-4178.41397696,0.00021059,4]
[334960618,1723677036572,-500.0,0.00021093,2]
[334960619,1723677036582,-2533.93722692,0.00021094,2]
[334960620,1723677036592,-151.0,0.00021111,2]
[334960621,1723677036602,-151.0,0.00021111,2]
[334960622,1723677036612,-151.0,0.00021111,2]
[334960623,1723677036626,-151.0,0.00021111,2]
[334960624,1723677036636,-500.0,0.00021175,2]
[334960625,1723677036646,-358.0,0.000212,2]
[334960626,1723677036656,-1000.0,0.000212,2]
[334960627,1723677036666,-226.0,0.000212,2]
[334960628,1723677036678,-900.0,0.00021204,2]
[334960629,1723677036688,-700.0,0.00021219,2]
[334960630,1723677036698,-500.0,0.00021226,2]
[334960631,1723677036708,-4178.41397696,0.00021265,4]
[334960632,1723677036719,-900.0,0.00021275,2]
[334960633,1723677036729,-500.0,0.00021414,2]
[334960634,1723677036740,-700.0,0.00021436,2]
[334960635,1723677036751,-160.0,0.00021451,2]
[334960636,1723677036761,-3787.77579506,0.00021478,2]
[334960637,1723677036771,-500.0,0.00021507,2]
[334960638,1723677036782,-700.0,0.00021665,2]
[334960639,1723677036792,-680.0,0.00021678,2]
[334960640,1723677036802,-500.0,0.00021707,2]
[334960641,1723677036812,-4178.41397696,0.00021708,4]
[334960642,1723677036822,-500.0,0.00021718,2]
[334960643,1723677036832,-151.0,0.00021718,2]
[334960644,1723677036843,-151.0,0.00021718,2]
[334960645,1723677036853,-151.0,0.00021732,2]
[334960646,1723677036863,-151.0,0.00021732,2]
[334960647,1723677036873,-151.0,0.00021732,2]
[334960648,1723677036884,-151.0,0.00021732,2]
[334960649,1723677036894,-151.0,0.00021732,2]
[334960650,1723677036906,-151.0,0.00021732,2]
[334960651,1723677036921,-151.0,0.00021732,2]
[334960652,1723677036931,-580.0,0.00021733,2]
[334960653,1723677036941,-151.0,0.00021827,2]
[334960654,1723677036951,-151.0,0.00021827,2]
[334960655,1723677036961,-151.0,0.00021827,2]
[334960656,1723677036971,-151.0,0.00021827,2]
[334960657,1723677036981,-151.0,0.00021827,2]
[334960658,1723677036992,-151.0,0.00021827,2]
[334960659,1723677037002,-151.0,0.00021827,2]
[334960660,1723677037012,-151.0,0.00021827,2]
[334960661,1723677037022,-151.0,0.00021827,2]
[334960662,1723677037031,-151.0,0.00021827,2]
[334960663,1723677037041,-151.0,0.00021827,2]
[334960664,1723677037051,-151.0,0.00021827,2]
[334960665,1723677037061,-151.0,0.00021827,2]
[334960666,1723677037071,-4178.41397696,0.00021828,4]
[334960667,1723677037080,-8356.82795392,0.00021828,4]
[334960668,1723677037091,-10938.9,0.00021838,2]
[334960669,1723677037101,-151.0,0.00021838,2]
[334960670,1723677037111,-151.0,0.00021838,2]
[334960671,1723677037123,-151.0,0.00021838,2]
[334960672,1723677037134,-151.0,0.00021838,2]
[334960673,1723677037145,-191.680496,0.00021838,2]
[334960674,1723677037155,-151.0,0.00021838,2]
[334960675,1723677037166,-191.680496,0.00021838,2]
[334960676,1723677037175,-151.0,0.00021838,2]
[334960677,1723677037186,-151.0,0.00021838,2]
[334960678,1723677037196,-151.0,0.00021838,2]
[334960679,1723677037206,-151.0,0.00021838,2]
[334960680,1723677037217,-151.0,0.00021838,2]
[334960681,1723677037226,-151.0,0.00021838,2]
[334960682,1723677037236,-151.0,0.00021838,2]
[334960683,1723677037247,-151.0,0.00021838,2]
[334960684,1723677037257,-4306.337115,0.00021838,2]
[334960685,1723677037267,-268.087017,0.00021838,2]
[334960686,1723677037277,-4178.41397696,0.0002188,4]
[334960687,1723677037287,-2000.0,0.000219,2]
[334960688,1723677037297,-151.0,0.000219,2]
[334960689,1723677037306,-230.231872,0.000219,2]
[334960690,1723677037318,-151.0,0.000219,2]
[334960691,1723677037331,-151.0,0.000219,2]
[334960692,1723677037342,-151.0,0.000219,2]
[334960693,1723677037355,-1561.2,0.00021918,2]
[334960694,1723677037365,-345.4608,0.00021918,2]
[334960695,1723677037376,-345.4608,0.00021918,2]
[334960696,1723677037386,-345.4608,0.00021918,2]
[334960697,1723677037396,-345.4608,0.00021918,2]
[334960698,1723677037408,-150.0,0.00021918,2]
[334960699,1723677037419,-500.0,0.00021926,2]
[334960700,1723677037430,-155.05549352,0.00021947,2]
[334960701,1723677037442,-796.47547052,0.00022,2]
[334960702,1723677037452,-174.0,0.00022,2]
[334960703,1723677037463,-4178.41397696,0.00022012,4]
[334960704,1723677037474,-900.0,0.00022022,2]
[334960705,1723677037485,-150.0,0.00022044,2]
[334960706,1723677037496,-500.0,0.00022055,2]
[334960707,1723677037506,-500.0,0.00022073,2]
[334960708,1723677037516,-900.0,0.00022082,2]
[334960709,1723677037526,-3000.0,0.000222,2]
[334960710,1723677037536,-4178.41397696,0.00022222,4]
[334960711,1723677037546,-500.0,0.00022285,2]
[334960712,1723677037558,-150.0,0.000223,5]
[334960713,1723677037568,-320.0,0.000223,5]
[334960714,1723677037578,-307.27,0.000223,14]
[334960715,1723677037588,-500.0,0.00022309,2]
[334960716,1723677037598,-500.0,0.0002242,2]
[334960717,1723677037612,-1000.0,0.00022466,2]
[334960718,1723677037622,-500.0,0.00022493,2]
[334960719,1723677037632,-150.0,0.00022495,2]
[334960720,1723677037642,-157.34,0.00022542,2]
[334960721,1723677037652,-700.0,0.00022688,2]
[334960722,1723677037662,-700.0,0.00022733,2]
[334960723,1723677037672,-500.49994545,0.00022734,2]
[334960724,1723677037682,-4178.41397696,0.00022814,4]
[334960725,1723677037692,-700.0,0.00022915,2]
[334960726,1723677037702,-900.0,0.0002297,2]
[334960727,1723677037712,-3787.77579506,0.00022989,2]
[334960728,1723677037722,-300.0,0.00023,2]
[334960729,1723677037732,-22886.37603296,0.00023,2]
[334960730,1723677037742,-174.0,0.00023014,2]
[334960731,1723677037753,-700.0,0.00023034,2]
[334960732,1723677037763,-150.0,0.00023071,2]
[334960733,1723677037773,-500.0,0.00023137,2]
[334960734,1723677037784,-700.0,0.00023188,2]
[334960735,1723677037796,-180.0,0.00023205,2]
[334960736,1723677037814,-500.0,0.00023223,2]
[334960737,1723677037826,-500.0,0.00023316,2]
[334960738,1723677037835,-4178.41397696,0.00023316,4]
[334960739,1723677037845,-500.0,0.00023326,2]
[334960740,1723677037857,-500.0,0.00023425,2]
[334960741,1723677037867,-4178.41397696,0.0002345,4]
[334960742,1723677037881,-151.0,0.0002347,7]
[334960743,1723677037893,-151.0,0.0002347,7]
[334960744,1723677037904,-172.320416,0.0002347,7]
[334960745,1723677037918,-151.0,0.0002347,7]
[334960746,1723677037928,-239.609362,0.0002347,7]
[334960747,1723677037940,-151.0,0.0002347,7]
[334960748,1723677037951,-152.518085,0.0002347,7]
[334960749,1723677037962,-152.518085,0.0002347,7]
[334960750,1723677037974,-151.0,0.0002347,7]
[334960751,1723677037984,-151.0,0.0002347,7]
[334960752,1723677037997,-151.0,0.0002348,7]
[334960753,1723677038007,-151.0,0.0002348,7]
[334960754,1723677038017,-151.0,0.0002348,7]
[334960755,1723677038026,-151.0,0.0002348,7]
[334960756,1723677038039,-151.0,0.0002348,7]
[334960757,1723677038049,-151.0,0.0002348,7]
[334960758,1723677038059,-151.0,0.0002348,7]
[334960759,1723677038069,-151.0,0.0002348,7]
[334960760,1723677038079,-151.0,0.0002348,7]
[334960761,1723677038090,-151.0,0.0002348,7]
[334960763,1723677038102,-151.0,0.0002348,7]
[334960765,1723677038112,-4178.41397696,0.0002348,4]
[334960767,1723677038123,-8356.82795392,0.0002349,4]
[334960768,1723677038135,-500.0,0.000235,2]
[334960769,1723677038145,-500.0,0.000235,2]
[334960770,1723677038155,-500.0,0.000235,2]
[334960772,1723677038166,-283.63,0.000235,2]
[334960773,1723677038175,-500.0,0.000235,2]
[334960775,1723677038186,-500.0,0.000235,2]
[334960776,1723677038196,-500.0,0.000235,2]
[334960777,1723677038208,-500.0,0.000235,2]
[334960778,1723677038219,-500.0,0.000235,2]
[334960779,1723677038230,-500.0,0.000235,2]
[334960780,1723677038240,-500.0,0.000235,2]
[334960781,1723677038251,-500.0,0.000235,2]
[334960782,1723677038262,-500.0,0.000235,2]
[334960783,1723677038273,-500.0,0.000235,2]
[334960784,1723677038284,-500.0,0.000235,2]
[334960785,1723677038295,-500.0,0.000235,2]
[334960786,1723677038306,-500.0,0.000235,2]
[334960787,1723677038317,-500.0,0.000235,2]
[334960788,1723677038327,-500.0,0.000235,2]
[334960789,1723677038337,-500.0,0.000235,2]
[334960790,1723677038347,-500.0,0.000235,2]
[334960791,1723677038357,-411.76,0.000235,2]
[334960792,1723677038367,-500.0,0.000235,2]
[334960793,1723677038378,-186.0,0.000235,6]
[334960794,1723677038388,-2110.0,0.000235,30]
[334960795,1723677038398,-151.0,0.000235,7]
[334960796,1723677038408,-151.0,0.000235,7]
[334960797,1723677038418,-151.0,0.000235,7]
[334960798,1723677038430,-151.0,0.000235,7]
[334960799,1723677038440,-500.0,0.00023501,2]
[334960800,1723677038451,-1932.60611324,0.00023566,2]
[334960801,1723677038461,-150.0,0.00023648,2]
[334960802,1723677038471,-900.0,0.00023743,2]
[334960803,1723677038481,-4178.41397696,0.00023751,4]
[334960804,1723677038492,-151.0,0.00023751,7]
[334960805,1723677038502,-151.0,0.00023751,7]
[334960806,1723677038513,-151.0,0.00023751,7]
[334960807,1723677038523,-151.0,0.00023751,7]
[334960808,1723677038533,-600.0,0.000238,8]
[334960809,1723677038544,-501.05485264,0.00023805,2]
[334960810,1723677038554,-900.0,0.00023881,2]
[334960811,1723677038564,-900.0,0.000239,8]
[334960812,1723677038575,-900.0,0.00023923,2]
[334960813,1723677038585,-1575.52084727,0.0002399,4]
[334960825,1723677038965,-2602.89312969,0.0002399,4]
[334960827,1723677038976,-2110.0,0.00024,30]
[334960829,1723677038986,-2596.52272701,0.00024,14]
[334960843,1723677039125,-207.36545677,9.941e-05,2]
[334960845,1723677039137,-292.63454323,0.00010009,2]
[334960848,1723677039154,-524.24279113,0.00010009,2]
[334960850,1723677039167,-410.0,0.00010009,2]
[334960898,1723677040286,-885.8,0.00010009,2]
[334960899,1723677040299,-13370.43013201,0.00010009,2]
[334960900,1723677040309,-647.09591446,0.00020708,2]
[334960901,1723677040318,-150.0,0.000223,5]
[334960902,1723677040328,-4985.07999581,0.00024,14]
[334960903,1723677040337,-500.0,0.00024124,11]
[334960904,1723677040346,-151.0,0.0002418,7]
[334960905,1723677040355,-151.0,0.0002418,7]
[334960906,1723677040365,-4178.41397696,0.0002418,4]
[334960907,1723677040374,-217.0,0.0002419,2]
[334960908,1723677040383,-972.93374724,0.000242,8]
[334960909,1723677040606,-227.06625276,0.000242,8]
[334960910,1723677040615,-2025.37714953,0.00024201,2]
[334960911,1723677040625,-4178.41397696,0.00024204,4]
[334960912,1723677040634,-2500.0,0.00024214,2]
[334960913,1723677040643,-150.0,0.00024225,2]
[334960914,1723677040652,-388.6707446,0.0002425,2]
[334961182,1723677043590,-548.3292554,0.0002425,2]
[334961184,1723677043602,-225.96,0.0002427,2]
[334961186,1723677043612,-225.96,0.0002427,2]
[334961188,1723677043623,-225.96,0.0002427,2]
[334961190,1723677043633,-110.71469725,0.0002427,2]
[334961192,1723677043647,-115.24530275,0.0002427,2]
[334961195,1723677043657,-225.96,0.0002427,2]
[334961197,1723677043668,-225.96,0.0002427,2]
[334961199,1723677043679,-37.01704261,0.0002427,2]
[334961372,1723677046510,-188.94295739,0.0002427,2]
[334961373,1723677046521,-225.96,0.0002427,2]
[334961374,1723677046532,-225.96,0.0002427,2]
[334961375,1723677046542,-225.96,0.0002427,2]
[334961376,1723677046553,-225.96,0.0002427,2]
[334961377,1723677046565,-225.96,0.0002427,2]
[334961378,1723677046576,-225.96,0.0002427,2]
[334961379,1723677046586,-225.96,0.0002427,2]
[334961380,1723677046598,-225.96,0.0002427,2]
[334961381,1723677046609,-225.96,0.0002427,2]
[334961382,1723677046619,-225.96,0.0002427,2]
[334961383,1723677046628,-225.96,0.0002427,2]
[334961384,1723677046638,-500.0,0.00024279,2]
[334961385,1723677046648,-27392.8904637,0.0002428,4]
[334961386,1723677048319,-1571.42027407,0.00017578,2]
[334961390,1723677123392,-200.0,9.95e-05,2]
[334961391,1723677200996,500.0,0.00024932,120]
[334961397,1723677391761,400.0,0.00024861,120]
[334961480,1723678231439,-284.0,0.00010698,2]
[334961483,1723678231450,-1101.0,0.00010698,2]
[334961485,1723678231459,-649.86351287,0.00010699,2]
[334961487,1723678231470,-1139.1217656,0.00010861,2]
[334961489,1723678231483,-600.74422133,0.00010861,2]
[334961491,1723678231492,-493.59808335,0.00010861,2]
[334961493,1723678231502,-628.75889526,0.00010862,2]
[334961495,1723678231511,-279.50806761,0.00010862,2]
[334961496,1723678231524,-17.98152088,0.00010862,2]
[334961497,1723678231534,-155.0,0.00010862,2]
[334961498,1723678231543,-155.0,0.00010888,2]
[334961499,1723678231555,-226.09034899,0.00010888,2]
[334961500,1723678231566,-122.22063509,0.0001089,2]
[334961501,1723678231578,-317.9442882,0.0001089,2]
[334961502,1723678231587,-472.21480142,0.000109,2]
[334961503,1723678231598,-560.98449858,0.000109,2]
[334961504,1723678231610,-637.8204899,0.0001095,2]
[334961505,1723678231619,-150.0,0.00010999,2]
[334961506,1723678231629,-187.43686088,0.00011,2]
[334961507,1723678231638,-23853.75815064,0.00011,2]
[334961508,1723678231650,-856.26166783,0.00011,2]
[334961509,1723678231662,-283.8100001,0.00011,2]
[334961510,1723678231674,-844.63596783,0.00011,2]
[334961511,1723678231685,-1033.09125361,0.00011,2]
[334961512,1723678231697,-307.36198922,0.00011,2]
[334961513,1723678231724,-211759.93957581,0.00011,2]
[334961515,1723678237850,-29548.71860002,0.00011,2]
[334961532,1723678239810,-1770.5578,0.00011,2]
[334961533,1723678239822,-18101.6388382,0.00011,2]
[334961989,1723678245802,-348.86,0.00011,2]
[334962188,1723679431593,-500.28272783,0.0001,2]
[334962189,1723679431606,-49.71727217,0.0001,2]
[334962190,1723679431615,-282.24563673,0.00010699,2]
[334962191,1723679431627,-1913.12,0.00010699,2]
[334962192,1723679431639,-16.34306472,0.00010699,2]
[334962193,1723679431649,-155.0,0.00010713,2]
[334962194,1723679431658,-6644.59958719,0.00010979,2]
[334962195,1723679431670,-710.26876103,0.00010979,2]
[334962196,1723679431688,-833.79793316,0.00010979,2]
[334962197,1723679431700,-318.86689986,0.00010979,2]
[334962198,1723679431715,-2867.42013149,0.00010979,2]
[334962199,1723679431725,-150.0,0.00010986,2]
[334962200,1723679431735,-300.0,0.00010988,2]
[334962201,1723679431745,-1074.67923523,0.00010989,2]
[334962202,1723679431754,-150.0,0.00010999,2]
[334962203,1723679431764,-4077.32063328,0.00011,2]
[334962204,1723679431776,-882.40264769,0.00011,2]
[334962205,1723679431788,-297.04785907,0.00011,2]
[334962206,1723679431799,-800.07111468,0.00011,2]
[334962207,1723679431812,-6639.50990284,0.00011,2]
[334962208,1723679431822,-250.0,0.00011,2]
[334962209,1723679431832,-181.86810677,0.00011,2]
[334962210,1723679431842,-170.53174495,0.00011,2]
[334962211,1723679431852,-162.75454349,0.00011,2]
[334962212,1723679431862,-786.00062964,0.00011,2]
[334962213,1723679431871,-2006.41,0.00011,2]
[334962214,1723679431881,-1994.44005259,0.00011,2]
[334962215,1723679431893,-60.27267741,0.00011,2]
[334962216,1723679431904,-274.74,0.00011,2]
[334962217,1723679431914,-230.68271783,0.00011336,2]
[334962218,1723679431923,-578.55400603,0.0001251,2]
[334962219,1723679431932,-628.75889526,0.00013052,2]
[334962220,1723679431942,-440.00090901,0.00013052,2]
[334962221,1723679431952,-164.37927092,0.00013086,2]
[334962222,1723679431964,-164.40260801,0.00013292,2]
[334962223,1723679431974,-203.41395605,0.00013292,2]
[334962224,1723679431983,-155.0,0.00013688,2]
[334962225,1723679431992,-425.15,0.00013973,2]
[334962226,1723679432002,-152.16,0.00013973,2]
[334962227,1723679432012,-499.99,0.00014235,2]
[334962228,1723679432021,-155.13044338,0.00014509,2]
[334962229,1723679432031,-3688.0,0.000158,2]
[334962230,1723679432041,-1054.0,0.000159,2]
[334962231,1723679432051,-641.14700617,0.00015902,2]
[334962232,1723679432062,-2054.71273,0.00016,2]
[334962233,1723679432072,-436.91909578,0.00017061,2]
[334962237,1723679437832,-639.08090422,0.00017061,2]
[334962239,1723679437842,-500.0,0.00017122,2]
[334962241,1723679437852,-500.0,0.0001713,2]
[334962242,1723679437862,-500.0,0.00017139,2]
[334962243,1723679437875,-500.0,0.00017148,2]
[334962244,1723679437885,-11498.0,0.000184,5]
[334962245,1723679437896,-168.08,0.00018403,2]
[334962246,1723679437906,-1000.0,0.00018788,2]
[334962247,1723679437917,-1913.1,0.00018842,2]
[334962248,1723679437927,-259.12,0.00018864,2]
[334962249,1723679437938,-152.52,0.00018962,2]
[334962250,1723679437965,-250.0,0.00019005,2]
[334962251,1723679437975,-500.0,0.00019168,2]
[334962252,1723679437985,-500.0,0.00019177,2]
[334962253,1723679437995,-17751.69,0.00019317,2]
[334962254,1723679438004,-200.0,0.00019555,2]
[334962255,1723679438015,-204.257009,0.00019726,2]
[334962256,1723679438027,-400.0,0.00019889,2]
[334962257,1723679438037,-12096.6,0.0002,4]
[334962258,1723679438048,-647.09591446,0.00020147,2]
[334962259,1723679438058,-2533.93722692,0.00020157,2]
[334962260,1723679438069,-676.50109187,0.00020162,2]
[334962261,1723679438080,-500.0,0.00020371,2]
[334962262,1723679438090,-500.0,0.00020433,2]
[334962263,1723679438102,-425.15,0.00020447,2]
[334962264,1723679438114,-204.257009,0.00020548,2]
[334962265,1723679438125,-500.0,0.00020605,2]
[334962266,1723679438135,-2054.71274,0.00021,2]
[334962267,1723679438145,-1000.0,0.00021136,2]
[334962268,1723679438155,-500.0,0.00021205,2]
[334962269,1723679438165,-500.0,0.00021334,2]
[334962270,1723679438175,-204.257009,0.0002137,2]
[334962271,1723679438185,-902.24456477,0.00021496,2]
[334962272,1723679438195,-500.0,0.00021532,2]
[334962273,1723679438205,-500.0,0.00021628,2]
[334962274,1723679438216,-500.0,0.00021724,2]
[334962275,1723679438225,-500.0,0.00021726,2]
[334962276,1723679438235,-2000.0,0.000219,2]
[334962277,1723679438245,-1301.0,0.00021918,2]
[334962278,1723679438255,-150.0,0.00021918,2]
[334962279,1723679438265,-796.47547052,0.00022,2]
[334962280,1723679438275,-500.0,0.00022091,2]
[334962281,1723679438284,-272.71,0.00022154,2]
[334962282,1723679438294,-154.3,0.00022154,2]
[334962283,1723679438304,-531.07,0.00022154,2]
[334962284,1723679438313,-150.0,0.00022154,2]
[334962285,1723679438323,-300.0,0.00022154,2]
[334962286,1723679438337,-531.07,0.00022154,2]
[334962287,1723679438348,-300.0,0.00022154,2]
[334962288,1723679438358,-150.0,0.00022154,2]
[334962289,1723679438368,-531.07,0.00022154,2]
[334962290,1723679438381,-531.07,0.00022154,2]
[334962291,1723679438397,-486.45,0.00022154,2]
[334962292,1723679438410,-150.0,0.00022154,2]
[334962293,1723679438421,-150.0,0.00022184,2]
[334962294,1723679438433,-204.257009,0.00022192,2]
[334962295,1723679438444,-150.0,0.00022202,2]
[334962296,1723679438456,-150.0,0.00022205,2]
[334962297,1723679438470,-150.0,0.00022266,2]
[334962298,1723679438479,-150.0,0.00022274,2]
[334962299,1723679438489,-150.0,0.00022292,2]
[334962300,1723679438499,-150.0,0.000223,5]
[334962301,1723679438509,-320.0,0.000223,5]
[334962302,1723679438519,-421.09,0.00022339,2]
[334962303,1723679438529,-835.26,0.00022339,2]
[334962304,1723679438539,-400.0,0.00022375,2]
[334962305,1723679438551,-150.0,0.00022437,2]
[334962306,1723679438562,-1000.0,0.00022466,2]
[334962307,1723679438572,-150.0,0.00022495,2]
[334962308,1723679438582,-150.0,0.00022514,2]
[334962309,1723679438592,-150.0,0.00022516,2]
[334962310,1723679438603,-150.0,0.00022543,2]